Cogmind - Beta 15 @@@ ROGUE MODE // 2025.05.24 @ 10:29:30 Player: Nalesnig Result: Destroyed by G-47 Trooper with Particle Gun Performance ------------- Evolutions (0) 0 Regions Visited (2) 400 Robots Destroyed (25) 125 Value Destroyed (564) 564 Prototype IDs (3) 60 Alien Tech Used (0) 0 Bonus (0) 0 TOTAL SCORE: 1149 Bonus ------- None Cogmind --------- Core Integrity 0/250 Matter 290/300 Energy 125/125 System Corruption 1% Temperature Cool (9) Movement Core (250) Ox4 Location -10/Mines Parts ------- > --- POWER (1) -------- Light Ion Engine > --- PROPULSION (2) --- Aluminum Leg > --- UTILITY (2) ------ Small Storage Unit Core Shielding > --- WEAPON (2) ------- Medium Laser Mining Claw > --- INVENTORY (8) ---- Light Ion Engine Light Nuclear Core Light Nuclear Core Huge Storage Unit Hacking Suite Assault Rifle Grenade Launcher Datajack Peak State ------------ > --- POWER ------------ Ion Engine > --- PROPULSION ------- Aluminum Leg Hover Unit > --- UTILITY ---------- Small Storage Unit Core Shielding > --- WEAPON ----------- Medium Laser Mining Claw > --- INVENTORY -------- Light Ion Engine Light Ion Engine Light Nuclear Core Huge Storage Unit Hacking Suite Grenade Launcher Datajack [Rating: 8] Favorites ----------- Power Ion Engine Engine Ion Engine Propulsion Aluminum Leg Treads Light Treads Leg Aluminum Leg Hover Unit Hover Unit Utility Small Storage Unit Device Seismic Detector Storage Small Storage Unit Protection Core Shielding Weapon Medium Laser Energy Gun Medium Laser Launcher Grenade Launcher Slashing Weapon Mining Claw Build | -11 -10 -10 ------- Run | Yrd Mat Min Slots Evolved . | . . . Power . | . . . Propulsion . | . . . Utility . | . . . Weapon . | . . . Parts Attached 17 | 7 10 . Power 2 | 1 1 . Engine 2 | 1 1 . Core . | . . . Reactor . | . . . Propulsion 5 | 2 3 . Treads 2 | 2 . . Leg 2 | . 2 . Wheel . | . . . Hover 1 | . 1 . Flight . | . . . Utility 4 | 2 2 . Device 2 | 1 1 . Storage 1 | 1 . . Processor . | . . . Hackware . | . . . Protection 1 | . 1 . Artifact . | . . . Weapon 6 | 2 4 . Energy Gun 4 | 2 2 . Energy Cannon . | . . . Ballistic Gun . | . . . Ballistic Cannon . | . . . Launcher 1 | . 1 . Special Weapon . | . . . Impact Weapon . | . . . Slashing Weapon 1 | . 1 . Piercing Weapon . | . . . Special Melee Weapon . | . . . Unidentified Prototypes . | . . . Parts Lost 9 | . 8 1 Power 1 | . 1 . Propulsion 4 | . 3 1 Utility 2 | . 2 . Weapon 2 | . 2 . Highest Loss Streak 3 | . 3 1 To Critical Strikes . | . . . Average Backups 4 | 1 5 8 Power 1 | . 1 3 Propulsion . | . . . Utility 1 | . 1 2 Weapon 1 | . 1 2 Tool/Special . | . . . Unused Backups 8 | 1 . 7 Power 3 | . . 3 Propulsion 1 | 1 . . Utility 2 | . . 2 Weapon 1 | . . 1 Tool/Special 1 | . . 1 Average Slot Usage (%) 88 | . 87 100 Engine 13 | . 13 14 Treads 6 | . 6 . Leg 8 | . 8 14 Hover 4 | . 4 14 Device 3 | . 3 . Storage 14 | . 14 14 Protection 8 | . 8 14 Energy Gun 18 | . 18 14 Slashing Weapon 8 | . 8 14 Peak Build Rating 8 | 7 8 8 Average Rating 6 | 5 6 7 On Entrance 5 | . 7 8 Naked Turns . | . . . Heaviest Build 16 | 14 16 13 Greatest Support 40 | 40 40 3 Greatest Overweight (x) 4 | . 4 4 Average Overweight (x) 1 | . 1 4 Largest Inventory Capacity 8 | 8 8 8 Average Capacity 7 | 7 8 8 Most Carried 8 | 3 8 8 Average Carried 5 | 1 5 8 Final Capacity 8 | 8 8 8 Final Carried 8 | 2 8 8 Class Distribution -------------------- 100% | Mutant Dominant Class ---------------- Mutant | -10/Materials Mutant | -10/Mines Resources | -11 -10 -10 ----------- Run | Yrd Mat Min Matter Collected 397 | 260 137 . Remotely . | . . . Salvage Created 925 | 155 740 30 Parts 45 | 13 30 2 Haulers Intercepted . | . . . Recyclers Shooed 5 | . 5 . Parts Field Recycled . | . . . Retrieved Matter . | . . . Parts Self-Destructed . | . . . Prevented . | . . . Kills | -11 -10 -10 ------- Run | Yrd Mat Min Combat Hostiles Destroyed 14 | . 13 1 Melee 3 | . 2 1 Guns 8 | . 8 . AOE 2 | . 2 . Classes Destroyed 6 | 2 4 . Tunneler 4 | 3 1 . Recycler 4 | 1 3 . Operator 1 | . 1 . Watcher 2 | . 2 . Swarmer 2 | . 2 . Grunt 12 | . 11 1 Best Kill Streak 6 | 3 6 1 Combat Bots Only 6 | . 6 1 Max Kills in Single Turn 2 | 1 2 1 Gunslinging . | . . . Exploded 1 | . 1 . Melee 1 | . 1 1 Uniques/NPCs Destroyed . | . . . Combat | -11 -10 -10 -------- Run | Yrd Mat Min Hostile Shots Fired 110 | . 101 9 Missed 22 | . 22 . Hits 88 | . 79 9 Projectile 88 | . 79 9 Damage Taken 1193 | . 1062 131 Core 257 | . 192 65 Absorbed by Shields . | . . . Redirected to Shielding 31 | . 17 14 Core Remaining (%) 100 | 100 . . Volleys Fired 80 | 9 71 . Largest 2 | 2 2 . Hottest 90 | 90 90 . Shots Fired 131 | 18 113 . Gun 128 | 18 110 . Cannon . | . . . Launcher 3 | . 3 . Special . | . . . Kinetic . | . . . Thermal 128 | 18 110 . Explosive 3 | . 3 . Electromagnetic . | . . . Robot Hit Streak 8 | 3 8 . Robot Miss Streak 7 | 1 7 . Penetration Max . | . . . Secondary Targets 2 | . 2 . Max Gunslinging Chain 1 | . 1 . Shots Hit Robots 95 | 10 82 3 Core Hits 41 | 5 35 1 Critical Kills . | . . . Critical Parts Destroyed . | . . . Critical Strikes 4 | . 4 . Burn 4 | . 4 . Melee Attacks 22 | . 19 3 Impact . | . . . Slashing 22 | . 19 3 Piercing . | . . . Sneak Attacks 9 | . 8 1 Combat Hostiles 1 | . . 1 Follow-up Attacks . | . . . Damage Inflicted 1725 | 122 1507 96 Guns 958 | 122 836 . Cannons . | . . . Explosions 135 | . 135 . Melee 625 | . 529 96 Ramming 7 | . 7 . Kinetic . | . . . Thermal 958 | 122 836 . Explosive 135 | . 135 . Electromagnetic . | . . . Impact . | . . . Slashing 625 | . 529 96 Piercing . | . . . Highest Corruption 1 | . 1 1 Average Corruption 1 | . 1 1 Corruption Purged . | . . . Corruption Blocked . | . . . Effects 4 | . 3 1 Matter Fused 1 | . . 1 Parts Rejected 1 | . 1 . Data Loss (minor) 1 | . 1 . Data Loss (major) 1 | . 1 . Overload Shots . | . . . Overflow Damage 4 | . 4 . Projectiles . | . . . Explosions . | . . . Melee 4 | . 4 . Knockbacks . | . . . Impact . | . . . Kinetic . | . . . Secondary . | . . . Self-Inflicted Damage 59 | . 59 . Shots 2 | . 2 . Rammed 3 | . 3 . Targets Rammed 3 | . 3 . Kicked . | . . . Crushed . | . . . Highest Temperature 382 | 120 382 . Average Temperature 107 | 40 118 . Received Heat Transfer 567 | . 495 72 Effects 3 | . 3 . Shutdowns 1 | . 1 . Energy Bleed 1 | . 1 . Short Circuit 1 | . 1 . Siege Activations . | . . . Martial Activations . | . . . Shielding Activations . | . . . Robots Disrupted . | . . . Combat Hostiles . | . . . Robots Corrupted . | . . . Combat Hostiles . | . . . Parts Fried . | . . . Impact Corruptions . | . . . Robots Melted 1 | . 1 . Combat Hostiles 1 | . 1 . Parts Melted 5 | . 5 . Heat Transferred 2897 | 323 2574 . Parts Sabotaged . | . . . Parts Stolen . | . . . Parts Stripped . | . . . Power Chain Reactions . | . . . Alert | -11 -10 -10 ------- Run | Yrd Mat Min Maximum Alert Level . | . . . Low Security (%) 100 | 100 100 100 Level 1 . | . . . Level 2 . | . . . Level 3 . | . . . Level 4 . | . . . Level 5 . | . . . High Security . | . . . Max Security . | . . . Peak Influence 72 | 10 72 20 Initial . | . . . Average 15 | 1 16 8 Influence Increases 462 | 20 422 20 Destroy 0b10 Robot/C 280 | . 260 20 Destroy 0b10 Robot/NC 55 | 20 35 . Destroy Leader 54 | . 54 . Successful Hack 22 | . 22 . Disable Machine 15 | . 15 . Destroy Structure 21 | . 21 . Partial Spotted 15 | . 15 . Influence Decreases 442 | 20 422 . Time Decay 382 | 20 362 . Lost Part 60 | . 60 . Squads Dispatched 4 | . 4 . Investigation 1 | . 1 . Extermination . | . . . Reinforcement 3 | . 3 . Assault . | . . . Garrison . | . . . Intercept . | . . . Searches Triggered . | . . . Construction Impeded . | . . . Haulers Reinforced . | . . . Active Scanning Responses . | . . . Cargo Convoy Interrupts . | . . . Stealth | -11 -10 -10 --------- Run | Yrd Mat Min Distress Signals 1 | . 1 . Communications Jammed . | . . . Distress Signals . | . . . Times Spotted 27 | . 25 2 Peak Tracking Total 6 | . 6 2 Tactical Retreats . | . . . Traps | -11 -10 -10 ------- Run | Yrd Mat Min Traps Triggered 2 | . 2 . Indirectly . | . . . Trap Hack Attempts . | . . . Triggered . | . . . Disarmed . | . . . Reprogrammed . | . . . Reused . | . . . Traps Extracted . | . . . Installed . | . . . Triggered . | . . . Machines | -11 -10 -10 ---------- Run | Yrd Mat Min Machines Disabled 1 | . 1 . Max in Single Turn 1 | . 1 . Machines Repaired . | . . . Machines Dismantled . | . . . Machines Sabotaged . | . . . Overloaded Fab Kills . | . . . Hacking | -11 -10 -10 --------- Run | Yrd Mat Min Machines Accessed 5 | . 5 . Terminals 4 | . 4 . Fabricators . | . . . Repair Stations . | . . . Recycling Units 1 | . 1 . Scanalyzers . | . . . Garrison Access . | . . . Total Hacks 20 | . 20 . Successful 12 | . 12 . Failed 8 | . 8 . Catastrophic 2 | . 2 . Database Lockouts . | . . . Manual 11 | . 11 . Terminals 14 | . 14 . Fabricators . | . . . Repair Stations . | . . . Recycling Units 6 | . 6 . Scanalyzers . | . . . Garrison Access . | . . . Terminal Hacks 7 | . 7 . Prototype ID Bank 2 | . 2 . Terminal Index 1 | . 1 . Surveillance Status 1 | . 1 . Transport Status 1 | . 1 . Hauler Manifests 2 | . 2 . Fabricator Hacks . | . . . Repair Station Hacks . | . . . Recycling Unit Hacks 1 | . 1 . Report Inventory 1 | . 1 . Scanalyzer . | . . . Garrison Access Hacks . | . . . Unauthorized Hacks 3 | . 3 . Terminals . | . . . Fabricators . | . . . Repair Stations . | . . . Recycling Units 3 | . 3 . Monitor 1 | . 1 . Recyclers 1 | . 1 . Mask 1 | . 1 . Scanalyzers . | . . . Garrison Access . | . . . Data Cores Recovered . | . . . Used . | . . . Hacking Detections 3 | . 3 . Full Trace Events . | . . . Feedback Events . | . . . Feedback Blocked . | . . . Robot Schematics Acquired . | . . . Robots Built . | . . . Authchips . | . . . Time . | . . . Total Robot Build Rating . | . . . Part Schematics Acquired . | . . . Parts Built . | . . . Authchips . | . . . Time . | . . . Total Part Build Rating . | . . . Parts Repaired . | . . . Time . | . . . Parts Recycled . | . . . Recycled Matter . | . . . Retrieved Matter . | . . . Retrieved Components . | . . . Parts Scanalyzed . | . . . Part Schematics Acquired . | . . . Parts Damaged . | . . . Bothacking | -11 -10 -10 ------------ Run | Yrd Mat Min Used RIF Installer . | . . . Robots Hacked . | . . . Non-combat . | . . . Combat . | . . . Robot Hacks Applied . | . . . Relay Couplers Released . | . . . Fabnet Peak Effective % . | . . . Robots Rewired . | . . . Allies Hacked . | . . . Hacks Repelled . | . . . Allies | -11 -10 -10 -------- Run | Yrd Mat Min Total Allies . | . . . Largest Group . | . . . Highest-Rated Group . | . . . Highest-Rated Ally . | . . . Total Orders . | . . . Ally Attacks . | . . . Total Damage . | . . . Kills . | . . . Allies Corrupted . | . . . Allies Melted . | . . . Intel | -11 -10 -10 ------- Run | Yrd Mat Min Active Infowar (turns) 304 | 11 293 . Seismic 304 | 11 293 . Robot Analysis Total . | . . . Derelict Logs Recovered . | . . . Drone Launches . | . . . Drone Recoveries . | . . . Exploration | -11 -10 -10 ------------- Run | Yrd Mat Min Turns Passed 1578 | 114 1454 10 Spaces Moved 693 | 50 642 1 Core 31 | 5 25 1 Treads 215 | 45 170 . Legs 221 | . 221 . Wheels . | . . . Hover 226 | . 226 . Flight . | . . . Fastest Speed 50 | 50 130 250 Average Speed 179 | 149 181 250 Slowest Speed 250 | 160 250 250 Overloaded Moves . | . . . Propulsion Burnouts . | . . . Robots Hopped . | . . . Potential Cave-ins . | . . . Cave-ins Triggered . | . . . Exploration Rate (%) 28 | 3 80 3 Regions Visited 2 Branch Regions 1 Pre-discovered Areas . | . . . Known Exits Taken . | . . . Unknown Exits Taken 2 | 1 1 . Scrap Searched . | . . . Spaces Dug . | . . . Terrain Destroyed 20 | . 20 . Melee . | . . . Projectile . | . . . AOE 20 | . 20 . Terrain Rammed . | . . . Walls Destroyed . | . . . Machines Disabled . | . . . Actions | -11 -10 -10 --------- Run | Yrd Mat Min Total 848 | 69 775 4 Wait 18 | . 18 . Move 691 | 49 641 1 Hop . | . . . Pick Up 12 | 3 9 . Fast Attach 13 | 7 6 . Attach 4 | . 4 . Detach 1 | . 1 . Swap 2 | . 2 . Drop 2 | 1 1 . Fire 80 | 9 71 . Melee 22 | . 19 3 Ram . | . . . Kick . | . . . Crush 3 | . 3 . Escape Stasis . | . . . Rewire . | . . . Trap . | . . . Miscellaneous . | . . . Route ------- -11/Scrapyard -10/Materials (discovered 3 exits: [*Mat x2] / [*Min]) -10/Mines History --------- Turn | Location | Event 14 | -11/Scrapyard | Discovered new exit (range 14) 115 | -11/Scrapyard | Entered Materials 276 | -10/Materials | Discovered new exit (range 11) 315 | -10/Materials | Build established: Mutant 519 | -10/Materials | Lost 3 parts (2n1u) 958 | -10/Materials | Discovered new exit (range 9) 1114 | -10/Materials | Core integrity fell below 50% 1146 | -10/Materials | Discovered new exit (range 12) 1569 | -10/Materials | Entered Mines 1572 | -10/Mines | Core integrity fell below 20% 1579 | -10/Mines | Destroyed by G-47 Trooper with Particle Gun Last Messages --------------- 01450_ >> MONITOR: Recycling Unit M002 accepting Imp. Heat Sink (80%). 01452_ O-16 Technician: "IFF HANDSHAKE FAILED. SECURING TERMINAL." 01454_ K-01 Serf cleans the Hadron Collector. 01456_ Sneak attack on A-02 Transporter. 01457_ K-01 Serf cleans the Hadron Collector. 01459_ ALERT: Hostiles spotted, dispatching reinforcements to Terminal M004. 01462_ K-01 Serf cleans the Hadron Collector. 01467_ Acquired 12 matter. 01474_ System corrupted: Substantial component data lost. LOCATION=UNKNOWN GOAL=ESCAPE Something is scanning the area. 01569_ Sneak attack on G-34 Mercenary. 01570_ Hover Unit destroyed. 01575_ G-34 Mercenary destroyed. 01578_ System corrupted: Matter fused (-7). Map ----- +----------------------------------------------------+ | ????????????????????????????????????? | | ????????????????????????????????????? | | ????????????????????????????????????? | | ????????????????????????????????????? | | ????????????????????????????????????? | | ????????????????????????????????????? | | ????????????????????????????????????? | | ????????????????????????????????????? | | ????????????????????????????????????? | | ????????????????????????????????????? | | ????????????????????????????????????? | | ????????????????????????????????????? | | ???????????????????##???????????????? | | ???????????????????? ???????????????? | | ???????????????????? ??????????????? | | ????????????????##??? ??????????????? | | ????????????????# #?? ?????????????? | | ????????????????? ### ?????????????? | | ?????????????????? ?????????????? | | ??????????????????? ????###?????? | | ????????????????????# ???# ##????? | | ????????????????????# ### #????? | | ?????????????????????# #?????? | | ?????????????????????# #??????? | | ?????????????????????# #???????? | | ?????????????????????## !@ #???????? | | ??????????????????????##%g #???????? | | ???????????????????????## ##???????? | | ????????????????????????####????????? | | ????????????????????????????????????? | | ????????????????????????????????????? | | ????????????????????????????????????? | | ????????????????????????????????????? | | ????????????????????????????????????? | | ????????????????????????????????????? | | ????????????????????????????????????? | | ????????????????????????????????????? | | ????????????????????????????????????? | | ????????????????????????????????????? | | ????????????????????????????????????? | | ????????????????????????????????????? | | ????????????????????????????????????? | | ????????????????????????????????????? | | ????????????????????????????????????? | | ????????????????????????????????????? | | ????????????????????????????????????? | | ????????????????????????????????????? | | ????????????????????????????????????? | | ????????????????????????????????????? | | ????????????????????????????????????? | +----------------------------------------------------+ Best States ------------- Heat Dissipation 35 Energy Generation 10 Energy Capacity 250 Matter Stores 300 Matter Capacity 300 Sight Range 16 Terrain Scan Density 10 Core Shielding 20 Evasion (%) 40 Recoil Reduction 2 Item Schematics ----------------- None Robot Schematics ------------------ None Fabricated ------------ Nothing Repaired ---------- Nothing Alien Tech Used ----------------- None Achievements -------------- None Challenges ------------ None Game ------ Seed ScatterDirectedSlayer Manual? 0 Play Time 00:09:40 Cumulative 48.1 hours Start 2025.05.24 @ 10:19:28 End 2025.05.24 @ 10:29:30 Sessions 1 Manual Loads 0 Difficulty Rogue Special Mode None Game No. 55 Rogue 55 Adventurer 0 Explorer 0 Win Type - Total 0 Types 0/0/0/0/0/0/0/0/0/0 Lore% 51 Gallery% 36 Achievement% 35 Wizard Run 0 Options --------- Layout 1 ASCII 0 Keyboard 0 Movement Mouse Keybinds 0 Fullscreen 1 Font 48/Smallcaps Map View 50x35 Zoom Use 0% Tactical HUD 1 Map Filters NONE Filters NONE Steam 1 RUN: 0f53e129-53f3-49d7-947f-afec0a0bb8df